{"text_format":"1","workbook":"xlsx","n_sheets":2,"sheets":["Sheet1","Sheet2"],"not_rendered":{"charts":0,"images":3,"macros":1,"external_links":0,"defined_names":10,"comments":0,"pivot_tables":0},"unopened":[],"bounds":{"document_bytes":16777216,"sheet_cells":100000,"rows_first":2000,"rows_last":500,"rows_between":2000,"halvings":0,"cell_chars":16384,"cell_head_chars":4096},"cells_cut":0,"cells_raw":0,"read":"whole","date_system":"1900"}

{"sheet":"Sheet1","index":0,"n_rows":28,"n_cols":30,"rows_kept":28,"cut":false,"hidden":false,"merged":[]}
["ID","PHASE",null,"TITLE","DISTRIBUTOR","ISBN","GRADE",null,"CLASSNAME",null,"CYCLE","SUBJECT",null,"LEARNERS","TOTAL","GOOD","TORN","NEED","ISSUED","RETURN",null,null,null,null,null,null,"FP","IP","SP","CLASS"]
[null,"IP","\u0080",null,null,null,"GRADE 1","\u0080",null,"\u0080",null,null,"\u0080",null,null,null,{"$f":"O2-P2","v":0},{"$f":"N2-O2","v":0},null,null,null,null,null,null,null,"GRADE","Home_Language","Home_Language","Home_Language","A"]
[null,null,"\u0080",null,null,null,null,"\u0080",null,"\u0080",null,null,"\u0080",null,null,null,0,0,null,null,null,null,null,null,null,"GRADE 1","First_Additional_Language","First_Additional_Language","First_Additional_Language","B"]
[null,null,"\u0080",null,null,null,null,"\u0080",null,"\u0080",null,null,"\u0080",null,null,null,0,0,null,null,null,null,null,null,null,"GRADE 2","Mathematics","Mathematics","Mathematics","C"]
[null,null,"\u0080",null,null,null,null,"\u0080",null,"\u0080",null,null,"\u0080",null,null,null,0,0,null,null,null,null,null,null,null,"GRADE 3","Beginning_Knowledge","Natural_Sciences_and_Technology","Natural_Sciences","D"]
[null,null,"\u0080",null,null,null,null,"\u0080",null,"\u0080",null,null,"\u0080",null,null,null,{"$f":"O6-P6","v":0},{"$f":"N6-O6","v":0},null,null,null,null,null,null,null,"GRADE 4","Creative_Arts","Social_Sciences","Social_ Sciences","E"]
[null,null,"\u0080",null,null,null,null,"\u0080",null,"\u0080",null,null,"\u0080",null,null,null,0,0,null,null,null,null,null,null,null,"GRADE 5","Physical_Education","Creative_Arts","Technology","F"]
[null,null,"\u0080",null,null,null,null,"\u0080",null,"\u0080",null,null,"\u0080",null,null,null,0,0,null,null,null,null,null,null,null,"GRADE 6","Personal_and_Social_Well-being","Physical_Education","Economic_Management_Sciences","G"]
[null,null,"\u0080",null,null,null,null,"\u0080",null,"\u0080",null,null,"\u0080",null,null,null,0,0,null,null,null,null,null,null,null,"GRADE 7",null,"Personal_and_Social_Well-being","Life_Orientation","H"]
[null,null,"\u0080",null,null,null,null,"\u0080",null,"\u0080",null,null,"\u0080",null,null,null,0,0,null,null,null,null,null,null,null,null,null,null,"Creative_Arts","I"]
[null,null,"\u0080",null,null,null,null,"\u0080",null,"\u0080",null,null,"\u0080",null,null,null,0,0,null,null,null,null,null,null,null,null,null,null,null,"J"]
[null,null,"\u0080",null,null,null,null,"\u0080",null,"\u0080",null,null,"\u0080",null,null,null,0,0,null,null,null,null,null,null,null,null,null,null,null,1]
[null,null,"\u0080",null,null,null,null,"\u0080",null,"\u0080",null,null,"\u0080",null,null,null,0,0,null,null,null,null,null,null,null,null,null,null,null,2]
[null,null,"\u0080",null,null,null,null,"\u0080",null,"\u0080",null,null,"\u0080",null,null,null,0,0,null,null,null,null,null,null,null,null,null,null,null,3]
[null,null,"\u0080",null,null,null,null,"\u0080",null,"\u0080",null,null,"\u0080",null,null,null,0,0,null,null,null,null,null,null,null,null,null,null,null,4]
[null,null,"\u0080",null,null,null,null,"\u0080",null,"\u0080",null,null,"\u0080",null,null,null,0,0,null,null,null,null,null,null,null,null,null,null,null,5]
[null,null,"\u0080",null,null,null,null,"\u0080",null,"\u0080",null,null,"\u0080",null,null,null,0,0]
[null,null,"\u0080",null,null,null,null,"\u0080",null,"\u0080",null,null,"\u0080",null,null,null,0,0]
[null,null,"\u0080",null,null,null,null,"\u0080",null,"\u0080",null,null,"\u0080",null,null,null,0,0]
[null,null,"\u0080",null,null,null,null,"\u0080",null,"\u0080",null,null,"\u0080",null,null,null,0,0]
[null,null,"\u0080",null,null,null,null,"\u0080",null,"\u0080",null,null,"\u0080",null,null,null,0,0]
[null,null,"\u0080",null,null,null,null,"\u0080",null,"\u0080",null,null,"\u0080",null,null,null,0,0]
[null,null,"\u0080",null,null,null,null,"\u0080",null,"\u0080",null,null,"\u0080",null,null,null,0,0]
[null,null,"\u0080",null,null,null,null,"\u0080",null,"\u0080",null,null,"\u0080",null,null,null,0,0]
[null,null,"\u0080",null,null,null,null,"\u0080",null,"\u0080",null,null,"\u0080",null,null,null,0,0]
[null,null,"\u0080",null,null,null,null,"\u0080",null,"\u0080",null,null,"\u0080",null,null,null,0,0]
[null,null,null,null,null,null,null,"\u0080",null,"\u0080",null,null,"\u0080",null,null,null,0,0]
[null,null,null,null,null,null,null,null,null,null,null,null,null,null,null,null,0,0]

{"sheet":"Sheet2","index":1,"n_rows":16,"n_cols":31,"rows_kept":16,"cut":false,"hidden":false,"merged":[]}
[null,null,null,null,null,null,null,null,null,null,null,null,null,null,null,null,null,null,null,null,null,null,null,null,null,null,"FP","IP","SP",null,"PHASE"]
["ID","LEARNER","PHASE","GRADE","CLASSNAME","SUBJECT","CEMIS","TEXTBOOK"," NUM","Q1","LQ1","DQ1","Q2","LQ2","DQ2","Q3","LQ3","DQ3","Q4","LQ4","DQ4","ISSUED","RETURN",null,null,"GRADE","Home_Language","Home_Language","Home_Language","A","FP"]
[null,null,null,null,null,null,null,null,null,null,null,null,null,null,null,null,null,null,null,null,null,null,null,null,null,"GRADE 1","First_Additional_Language","First_Additional_Language","First_Additional_Language","B","IP"]
[null,null,null,null,null,null,null,null,null,null,null,null,null,null,null,null,null,null,null,null,null,null,null,null,null,"GRADE 2","Mathematics","Mathematics","Mathematics","C","SP"]
[null,null,null,null,null,null,null,null,null,null,null,null,null,null,null,null,null,null,null,null,null,null,null,null,null,"GRADE 3","Beginning_Knowledge","Natural_Sciences_and_Technology","Natural_Sciences","D"]
[null,null,null,null,null,null,null,null,null,null,null,null,null,null,null,null,null,null,null,null,null,null,null,null,null,"GRADE 4","Creative_Arts","Social_Sciences","Social_ Sciences","E"]
[null,null,null,null,null,null,null,null,null,null,null,null,null,null,null,null,null,null,null,null,null,null,null,null,null,"GRADE 5","Physical_Education","Creative_Arts","Technology","F"]
[null,null,null,null,null,null,null,null,null,null,null,null,null,null,null,null,null,null,null,null,null,null,null,null,null,"GRADE 6","Personal_and_Social_Well-being","Physical_Education","Economic_Management_Sciences","G"]
[null,null,null,null,null,null,null,null,null,null,null,null,null,null,null,null,null,null,null,null,null,null,null,null,null,"GRADE 7",null,"Personal_and_Social_Well-being","Life_Orientation","H"]
[null,null,null,null,null,null,null,null,null,null,null,null,null,null,null,null,null,null,null,null,null,null,null,null,null,null,null,null,"Creative_Arts","I"]
[null,null,null,null,null,null,null,null,null,null,null,null,null,null,null,null,null,null,null,null,null,null,null,null,null,null,null,null,null,"J"]
[null,null,null,null,null,null,null,null,null,null,null,null,null,null,null,null,null,null,null,null,null,null,null,null,null,null,null,null,null,1]
[null,null,null,null,null,null,null,null,null,null,null,null,null,null,null,null,null,null,null,null,null,null,null,null,null,null,null,null,null,2]
[null,null,null,null,null,null,null,null,null,null,null,null,null,null,null,null,null,null,null,null,null,null,null,null,null,null,null,null,null,3]
[null,null,null,null,null,null,null,null,null,null,null,null,null,null,null,null,null,null,null,null,null,null,null,null,null,null,null,null,null,4]
[null,null,null,null,null,null,null,null,null,null,null,null,null,null,null,null,null,null,null,null,null,null,null,null,null,null,null,null,null,5]